[Event "Titled Tuesday Blitz February 15 Early 2022"]
[White "Clawitter, Craig"]
[Black "Desideri, Ricardo Maruchi"]
[WhiteFideId "2023105"]
[BlackFideId "2110440"]
[WhiteElo "2138"]
[BlackElo "1945"]
[Result "0-1"]
[Round "11"]
[TimeControl "180+1"]
[Date "2022.02.15"]
[WhiteClock "0:00:08"]
[BlackClock "0:00:07"]

1. e4 {[%clk 0:03:00]}  c5 {[%clk 0:02:57]} 2. Nf3 {[%clk 0:03:00]}  d6 {[%clk 0:02:56]} 3. d4 {[%clk 0:03:01]}  cxd4 {[%clk 0:02:56]} 4. Nxd4 {[%clk 0:03:02]}  Nf6 {[%clk 0:02:56]} 5. Nc3 {[%clk 0:03:02]}  a6 {[%clk 0:02:56]} 6. Be3 {[%clk 0:03:03]}  e6 {[%clk 0:02:57]} 7. f4 {[%clk 0:02:59]}  Qc7 {[%clk 0:02:53]} 8. Qf3 {[%clk 0:02:58]}  b5 {[%clk 0:02:52]} 9. O-O-O {[%clk 0:02:54]}  Nbd7 {[%clk 0:02:51]} 10. g4 {[%clk 0:02:52]}  b4 {[%clk 0:02:36]} 11. Na4 {[%clk 0:02:48]}  Bb7 {[%clk 0:02:34]} 12. Bd3 {[%clk 0:02:44]}  Nc5 {[%clk 0:02:33]} 13. Nxc5 {[%clk 0:02:38]}  dxc5 {[%clk 0:02:32]} 14. Nb5 {[%clk 0:02:29]}  axb5 {[%clk 0:02:29]} 15. Bxb5+ {[%clk 0:02:29]}  Ke7 {[%clk 0:02:13]} 16. g5 {[%clk 0:02:18]}  Nxe4 {[%clk 0:01:59]} 17. Rd7+ {[%clk 0:02:02]}  Qxd7 {[%clk 0:01:59]} 18. Bxd7 {[%clk 0:02:03]}  Kxd7 {[%clk 0:01:59]} 19. Rd1+ {[%clk 0:01:52]}  Kc8 {[%clk 0:01:59]} 20. Qf1 {[%clk 0:01:05]}  Ba6 {[%clk 0:01:46]} 21. Qg2 {[%clk 0:00:53]}  Bb7 {[%clk 0:01:41]} 22. Qe2 {[%clk 0:00:41]}  Ba6 {[%clk 0:01:39]} 23. Qh5 {[%clk 0:00:38]}  g6 {[%clk 0:01:32]} 24. Qf3 {[%clk 0:00:31]}  Bb7 {[%clk 0:01:32]} 25. Qf1 {[%clk 0:00:21]}  Rxa2 {[%clk 0:01:02]} 26. Kb1 {[%clk 0:00:20]}  Ra5 {[%clk 0:00:59]} 27. Qc4 {[%clk 0:00:18]}  Be7 {[%clk 0:00:52]} 28. Bd2 {[%clk 0:00:12]}  Kc7 {[%clk 0:00:49]} 29. Bxb4 {[%clk 0:00:12]}  Ra4 {[%clk 0:00:44]} 30. c3 {[%clk 0:00:12]}  Rd8 {[%clk 0:00:41]} 31. Rxd8 {[%clk 0:00:11]}  Kxd8 {[%clk 0:00:39]} 32. Qb5 {[%clk 0:00:11]}  Ra7 {[%clk 0:00:32]} 33. Qb6+ {[%clk 0:00:11]}  Kc8 {[%clk 0:00:29]} 34. Qxa7 {[%clk 0:00:12]}  cxb4 {[%clk 0:00:29]} 35. cxb4 {[%clk 0:00:11]}  Bxb4 {[%clk 0:00:25]} 36. Qd4 {[%clk 0:00:11]}  Bd6 {[%clk 0:00:23]} 37. Qh8+ {[%clk 0:00:11]}  Kd7 {[%clk 0:00:22]} 38. Qxh7 {[%clk 0:00:11]}  Ke7 {[%clk 0:00:21]} 39. Qh4 {[%clk 0:00:10]}  Bd5 {[%clk 0:00:18]} 40. Kc2 {[%clk 0:00:10]}  Nc5 {[%clk 0:00:13]} 41. Qg4 {[%clk 0:00:10]}  Be4+ {[%clk 0:00:13]} 42. Kc3 {[%clk 0:00:09]}  Bf5 {[%clk 0:00:13]} 43. Qg1 {[%clk 0:00:08]}  Ne4+ {[%clk 0:00:12]} 44. Kd4 {[%clk 0:00:09]}  Bc5+ {[%clk 0:00:11]} 45. Ke5 {[%clk 0:00:09]}  Bxg1 {[%clk 0:00:10]} 46. b4 {[%clk 0:00:09]}  Bf2 {[%clk 0:00:08]} 47. b5 {[%clk 0:00:09]}  Be1 {[%clk 0:00:07]} 48. b6 {[%clk 0:00:08]}  Bc3# {[%clk 0:00:07]} 0-1


[Site "https://www.chess.com"]

[Event "Titled Tuesday Blitz February 15 Early 2022"]
[White "De Silva, L M S T"]
[Black "Ratnakaran, K."]
[WhiteFideId "9953698"]
[BlackFideId "5005507"]
[WhiteElo "1631"]
[BlackElo "2391"]
[Result "0-1"]
[Round "11"]
[TimeControl "180+1"]
[Date "2022.02.15"]
[WhiteClock "0:00:18"]
[BlackClock "0:01:25"]

1. Nf3 {[%clk 0:03:00]}  g6 {[%clk 0:02:57]} 2. d4 {[%clk 0:03:00]}  Bg7 {[%clk 0:02:57]} 3. e3 {[%clk 0:03:01]}  Nf6 {[%clk 0:02:57]} 4. c4 {[%clk 0:03:01]}  O-O {[%clk 0:02:58]} 5. Nc3 {[%clk 0:03:00]}  d6 {[%clk 0:02:59]} 6. Be2 {[%clk 0:02:59]}  Nbd7 {[%clk 0:03:00]} 7. O-O {[%clk 0:02:59]}  e5 {[%clk 0:03:01]} 8. dxe5 {[%clk 0:02:59]}  dxe5 {[%clk 0:03:01]} 9. Qc2 {[%clk 0:03:00]}  Qe7 {[%clk 0:03:00]} 10. b3 {[%clk 0:02:59]}  e4 {[%clk 0:03:01]} 11. Nd4 {[%clk 0:02:59]}  c5 {[%clk 0:03:01]} 12. Ndb5 {[%clk 0:02:57]}  Ne5 {[%clk 0:03:01]} 13. h3 {[%clk 0:02:54]}  h5 {[%clk 0:03:00]} 14. Rd1 {[%clk 0:02:54]}  Bf5 {[%clk 0:02:59]} 15. Bb2 {[%clk 0:02:51]}  Nf3+ {[%clk 0:02:58]} 16. gxf3 {[%clk 0:02:41]}  exf3 {[%clk 0:02:58]} 17. Bd3 {[%clk 0:02:42]}  Bxh3 {[%clk 0:02:53]} 18. Bf1 {[%clk 0:02:16]}  Bf5 {[%clk 0:02:50]} 19. Qd2 {[%clk 0:02:07]}  Ne4 {[%clk 0:02:40]} 20. Nxe4 {[%clk 0:02:05]}  Bxe4 {[%clk 0:02:40]} 21. Bxg7 {[%clk 0:01:50]}  Qg5+ {[%clk 0:02:40]} 22. Kh2 {[%clk 0:01:50]}  Kxg7 {[%clk 0:02:36]} 23. Qd6 {[%clk 0:01:42]}  a6 {[%clk 0:02:27]} 24. Nc3 {[%clk 0:01:36]}  Bc2 {[%clk 0:02:23]} 25. Rd2 {[%clk 0:01:33]}  Rad8 {[%clk 0:02:22]} 26. Qxd8 {[%clk 0:01:10]}  Rxd8 {[%clk 0:02:21]} 27. Rxc2 {[%clk 0:01:11]}  Qe5+ {[%clk 0:02:16]} 28. Kg1 {[%clk 0:01:09]}  b5 {[%clk 0:02:10]} 29. Rac1 {[%clk 0:01:08]}  b4 {[%clk 0:02:09]} 30. Nd5 {[%clk 0:01:08]}  h4 {[%clk 0:02:04]} 31. Bh3 {[%clk 0:01:07]}  Rh8 {[%clk 0:02:02]} 32. Kh1 {[%clk 0:01:07]}  Rh5 {[%clk 0:02:02]} 33. Rd2 {[%clk 0:01:05]}  Rg5 {[%clk 0:01:59]} 34. Nf4 {[%clk 0:01:04]}  Rg3 {[%clk 0:01:43]} 35. Rcd1 {[%clk 0:00:36]}  a5 {[%clk 0:01:42]} 36. fxg3 {[%clk 0:00:29]}  hxg3 {[%clk 0:01:39]} 37. Nd5 {[%clk 0:00:24]}  Qe4 {[%clk 0:01:30]} 38. Bg2 {[%clk 0:00:17]}  Qh4+ {[%clk 0:01:25]} 39. Kg1 {[%clk 0:00:16]}  Qh2+ {[%clk 0:01:25]} 40. Kf1 {[%clk 0:00:16]}  fxg2+ {[%clk 0:01:25]} 41. Rxg2 {[%clk 0:00:17]}  Qh1+ {[%clk 0:01:25]} 42. Ke2 {[%clk 0:00:18]} 0-1


[Site "https://www.chess.com"]

[Event "Titled Tuesday Blitz February 15 Early 2022"]
[White "Demin, Vladimir"]
[Black "Vidit, Santosh Gujrathi"]
[WhiteFideId "4167457"]
[BlackFideId "5029465"]
[WhiteElo "2522"]
[BlackElo "2654"]
[Result "0-1"]
[Round "11"]
[TimeControl "180+1"]
[Date "2022.02.15"]
[WhiteClock "0:00:01"]
[BlackClock "0:00:58"]

1. e4 {[%clk 0:03:00]}  c5 {[%clk 0:02:59]} 2. Nf3 {[%clk 0:03:01]}  d6 {[%clk 0:03:00]} 3. d4 {[%clk 0:03:00]}  cxd4 {[%clk 0:03:01]} 4. Qxd4 {[%clk 0:03:01]}  Nf6 {[%clk 0:02:58]} 5. Nc3 {[%clk 0:03:00]}  a6 {[%clk 0:02:57]} 6. Be3 {[%clk 0:02:59]}  Nc6 {[%clk 0:02:57]} 7. Qd2 {[%clk 0:03:00]}  e6 {[%clk 0:02:56]} 8. O-O-O {[%clk 0:03:00]}  Be7 {[%clk 0:02:52]} 9. Rg1 {[%clk 0:02:54]}  b5 {[%clk 0:02:44]} 10. g4 {[%clk 0:02:54]}  Qa5 {[%clk 0:02:33]} 11. g5 {[%clk 0:02:50]}  Nd7 {[%clk 0:02:33]} 12. Kb1 {[%clk 0:02:39]}  Nde5 {[%clk 0:02:33]} 13. Nxe5 {[%clk 0:02:14]}  dxe5 {[%clk 0:02:30]} 14. h4 {[%clk 0:01:49]}  O-O {[%clk 0:02:30]} 15. Bd3 {[%clk 0:01:43]}  Rd8 {[%clk 0:02:28]} 16. h5 {[%clk 0:01:40]}  Bb7 {[%clk 0:02:28]} 17. g6 {[%clk 0:01:39]}  Nd4 {[%clk 0:02:19]} 18. Bh6 {[%clk 0:00:53]}  Bf6 {[%clk 0:02:01]} 19. Nd5 {[%clk 0:00:09]}  Qxd2 {[%clk 0:01:55]} 20. Nxf6+ {[%clk 0:00:09]}  gxf6 {[%clk 0:01:54]} 21. gxh7+ {[%clk 0:00:05]}  Kxh7 {[%clk 0:01:53]} 22. Bxd2 {[%clk 0:00:05]}  Nf3 {[%clk 0:01:46]} 23. Rg3 {[%clk 0:00:05]}  Nxd2+ {[%clk 0:01:44]} 24. Rxd2 {[%clk 0:00:06]}  Rg8 {[%clk 0:01:41]} 25. Kc1 {[%clk 0:00:03]}  Kh6 {[%clk 0:01:34]} 26. Rd1 {[%clk 0:00:02]}  Rxg3 {[%clk 0:01:32]} 27. fxg3 {[%clk 0:00:03]}  Kxh5 {[%clk 0:01:32]} 28. Rf1 {[%clk 0:00:04]}  Kg5 {[%clk 0:01:29]} 29. Kd2 {[%clk 0:00:04]}  Rh8 {[%clk 0:01:29]} 30. Ke3 {[%clk 0:00:04]}  Rh2 {[%clk 0:01:25]} 31. a4 {[%clk 0:00:04]}  b4 {[%clk 0:01:19]} 32. Kf3 {[%clk 0:00:03]}  f5 {[%clk 0:01:11]} 33. Ke3 {[%clk 0:00:02]}  fxe4 {[%clk 0:01:01]} 34. Be2 {[%clk 0:00:01]}  f5 {[%clk 0:01:00]} 35. Rd1 {[%clk 0:00:01]}  f4+ {[%clk 0:00:58]} 0-1


[Site "https://www.chess.com"]

[Event "Titled Tuesday Blitz February 15 Early 2022"]
[White "Dew, Brian"]
[Black "Hamley, Ryan"]
[WhiteFideId "6000495"]
[BlackFideId "30959497"]
[WhiteElo "2118"]
[BlackElo "2395"]
[Result "1/2-1/2"]
[Round "11"]
[TimeControl "180+1"]
[Date "2022.02.15"]
[WhiteClock "0:00:10"]
[BlackClock "0:00:05"]

1. b3 {[%clk 0:03:00]}  e5 {[%clk 0:02:53]} 2. Bb2 {[%clk 0:03:01]}  Nc6 {[%clk 0:02:53]} 3. e3 {[%clk 0:03:02]}  a6 {[%clk 0:02:52]} 4. c4 {[%clk 0:02:59]}  Nf6 {[%clk 0:02:52]} 5. d3 {[%clk 0:02:59]}  d5 {[%clk 0:02:52]} 6. cxd5 {[%clk 0:02:58]}  Nxd5 {[%clk 0:02:51]} 7. a3 {[%clk 0:02:57]}  Bd6 {[%clk 0:02:51]} 8. Nf3 {[%clk 0:02:57]}  O-O {[%clk 0:02:51]} 9. Be2 {[%clk 0:02:57]}  Kh8 {[%clk 0:02:51]} 10. O-O {[%clk 0:02:57]}  f5 {[%clk 0:02:51]} 11. Nbd2 {[%clk 0:02:56]}  Be6 {[%clk 0:02:49]} 12. Nc4 {[%clk 0:02:55]}  Qf6 {[%clk 0:02:42]} 13. Rc1 {[%clk 0:02:53]}  Rad8 {[%clk 0:02:37]} 14. b4 {[%clk 0:02:50]}  Rfe8 {[%clk 0:02:30]} 15. Qc2 {[%clk 0:02:49]}  Bg8 {[%clk 0:02:28]} 16. Nxd6 {[%clk 0:02:42]}  cxd6 {[%clk 0:02:25]} 17. Rfe1 {[%clk 0:02:38]}  Rc8 {[%clk 0:02:22]} 18. Qb1 {[%clk 0:02:37]}  h6 {[%clk 0:02:14]} 19. Qa1 {[%clk 0:02:36]}  Kh7 {[%clk 0:02:13]} 20. Bf1 {[%clk 0:02:33]}  Bf7 {[%clk 0:02:10]} 21. Be2 {[%clk 0:02:32]}  g5 {[%clk 0:02:07]} 22. Nd2 {[%clk 0:02:30]}  g4 {[%clk 0:02:01]} 23. Nc4 {[%clk 0:02:27]}  Qe7 {[%clk 0:01:59]} 24. Bd1 {[%clk 0:02:21]}  h5 {[%clk 0:01:56]} 25. Bb3 {[%clk 0:02:03]}  Rc7 {[%clk 0:01:46]} 26. Nd2 {[%clk 0:01:58]}  Rec8 {[%clk 0:01:43]} 27. Qa2 {[%clk 0:01:57]}  Nb6 {[%clk 0:01:35]} 28. Bxf7 {[%clk 0:01:56]}  Qxf7 {[%clk 0:01:35]} 29. Qxf7+ {[%clk 0:01:54]}  Rxf7 {[%clk 0:01:35]} 30. Nc4 {[%clk 0:01:54]}  Nxc4 {[%clk 0:01:33]} 31. dxc4 {[%clk 0:01:53]}  Rfc7 {[%clk 0:01:17]} 32. Rcd1 {[%clk 0:01:52]}  Rd7 {[%clk 0:01:15]} 33. Re2 {[%clk 0:01:47]}  Kg6 {[%clk 0:01:12]} 34. Red2 {[%clk 0:01:46]}  Rcd8 {[%clk 0:01:13]} 35. Rd5 {[%clk 0:01:38]}  Kf7 {[%clk 0:01:10]} 36. f3 {[%clk 0:01:27]}  Ke6 {[%clk 0:01:09]} 37. Kf2 {[%clk 0:01:26]}  Ne7 {[%clk 0:01:06]} 38. R5d2 {[%clk 0:01:21]}  d5 {[%clk 0:01:02]} 39. cxd5+ {[%clk 0:01:19]}  Rxd5 {[%clk 0:01:02]} 40. Rxd5 {[%clk 0:01:18]}  Rxd5 {[%clk 0:01:01]} 41. Rxd5 {[%clk 0:01:14]}  Kxd5 {[%clk 0:01:01]} 42. Ke2 {[%clk 0:01:09]}  Nc6 {[%clk 0:00:57]} 43. Kd3 {[%clk 0:01:08]}  e4+ {[%clk 0:00:51]} 44. fxe4+ {[%clk 0:01:03]}  fxe4+ {[%clk 0:00:51]} 45. Kc2 {[%clk 0:01:01]}  Kc4 {[%clk 0:00:47]} 46. Bf6 {[%clk 0:00:52]}  b5 {[%clk 0:00:43]} 47. h3 {[%clk 0:00:49]}  a5 {[%clk 0:00:38]} 48. bxa5 {[%clk 0:00:45]}  Nxa5 {[%clk 0:00:38]} 49. hxg4 {[%clk 0:00:36]}  hxg4 {[%clk 0:00:37]} 50. Bc3 {[%clk 0:00:33]}  Nb3 {[%clk 0:00:36]} 51. Bf6 {[%clk 0:00:23]}  Nc5 {[%clk 0:00:32]} 52. Bc3 {[%clk 0:00:20]}  Nd3 {[%clk 0:00:28]} 53. Bd2 {[%clk 0:00:16]}  Ne5 {[%clk 0:00:11]} 54. Bc3 {[%clk 0:00:15]}  Nd3 {[%clk 0:00:09]} 55. Bd2 {[%clk 0:00:15]}  Nf2 {[%clk 0:00:09]} 56. Bc3 {[%clk 0:00:10]}  Nd3 {[%clk 0:00:05]} 1/2-1/2


[Site "https://www.chess.com"]

[Event "Titled Tuesday Blitz February 15 Early 2022"]
[White "Einarsson, Halldor Gretar"]
[Black "Kett, Tim"]
[WhiteFideId "2300150"]
[BlackFideId "1801210"]
[WhiteElo "2114"]
[BlackElo "2098"]
[Result "1-0"]
[Round "11"]
[TimeControl "180+1"]
[Date "2022.02.15"]
[WhiteClock "0:00:16"]
[BlackClock "0:00:03"]

1. d4 {[%clk 0:03:00]}  d5 {[%clk 0:02:58]} 2. Nf3 {[%clk 0:02:59]}  e6 {[%clk 0:02:54]} 3. g3 {[%clk 0:02:59]}  c5 {[%clk 0:02:54]} 4. Bg2 {[%clk 0:02:58]}  cxd4 {[%clk 0:02:52]} 5. Nxd4 {[%clk 0:02:57]}  Nc6 {[%clk 0:02:52]} 6. O-O {[%clk 0:02:54]}  Nf6 {[%clk 0:02:35]} 7. c4 {[%clk 0:02:50]}  e5 {[%clk 0:02:25]} 8. Nxc6 {[%clk 0:02:40]}  bxc6 {[%clk 0:02:26]} 9. Nc3 {[%clk 0:02:40]}  Bb4 {[%clk 0:02:07]} 10. cxd5 {[%clk 0:02:20]}  Bxc3 {[%clk 0:02:06]} 11. bxc3 {[%clk 0:02:19]}  cxd5 {[%clk 0:02:00]} 12. c4 {[%clk 0:02:19]}  Be6 {[%clk 0:01:53]} 13. Bg5 {[%clk 0:02:17]}  d4 {[%clk 0:01:39]} 14. Bxf6 {[%clk 0:01:39]}  gxf6 {[%clk 0:01:36]} 15. Bxa8 {[%clk 0:01:07]}  Qxa8 {[%clk 0:01:35]} 16. f3 {[%clk 0:01:06]}  h5 {[%clk 0:01:31]} 17. Rb1 {[%clk 0:00:53]}  h4 {[%clk 0:01:29]} 18. Qa4+ {[%clk 0:00:45]}  Kf8 {[%clk 0:01:28]} 19. Qb4+ {[%clk 0:00:43]}  Kg7 {[%clk 0:01:26]} 20. Qb7 {[%clk 0:00:41]}  hxg3 {[%clk 0:01:06]} 21. hxg3 {[%clk 0:00:40]}  Qg8 {[%clk 0:01:01]} 22. Kg2 {[%clk 0:00:37]}  Qh7 {[%clk 0:00:49]} 23. Rh1 {[%clk 0:00:36]}  Qc2 {[%clk 0:00:49]} 24. Rxh8 {[%clk 0:00:30]}  Qxe2+ {[%clk 0:00:44]} 25. Kg1 {[%clk 0:00:30]}  Qe3+ {[%clk 0:00:37]} 26. Kh1 {[%clk 0:00:25]}  Kxh8 {[%clk 0:00:33]} 27. Qe4 {[%clk 0:00:24]}  Qxe4 {[%clk 0:00:19]} 28. fxe4 {[%clk 0:00:24]}  Bxc4 {[%clk 0:00:20]} 29. Rb7 {[%clk 0:00:23]}  Kg7 {[%clk 0:00:17]} 30. Rxa7 {[%clk 0:00:22]}  Bd3 {[%clk 0:00:18]} 31. Kg1 {[%clk 0:00:21]}  Bxe4 {[%clk 0:00:18]} 32. Kf2 {[%clk 0:00:21]}  Bd5 {[%clk 0:00:16]} 33. a4 {[%clk 0:00:20]}  e4 {[%clk 0:00:16]} 34. a5 {[%clk 0:00:20]}  e3+ {[%clk 0:00:16]} 35. Ke1 {[%clk 0:00:18]}  d3 {[%clk 0:00:15]} 36. Rd7 {[%clk 0:00:17]}  Bc4 {[%clk 0:00:07]} 37. Rd4 {[%clk 0:00:17]}  d2+ {[%clk 0:00:06]} 38. Kd1 {[%clk 0:00:17]}  Bb3+ {[%clk 0:00:06]} 39. Ke2 {[%clk 0:00:17]}  d1=Q+ {[%clk 0:00:03]} 40. Rxd1 {[%clk 0:00:16]} 1-0


[Site "https://www.chess.com"]

[Event "Titled Tuesday Blitz February 15 Early 2022"]
[White "Eynullayev, Altay"]
[Black "Csonka, Balazs"]
[WhiteFideId "13413562"]
[BlackFideId "742910"]
[WhiteElo "2079"]
[BlackElo "2404"]
[Result "1-0"]
[Round "11"]
[TimeControl "180+1"]
[Date "2022.02.15"]
[WhiteClock "0:00:07"]
[BlackClock "0:00:01"]

1. e4 {[%clk 0:03:00]}  c5 {[%clk 0:02:59]} 2. Nf3 {[%clk 0:03:01]}  Nc6 {[%clk 0:02:56]} 3. Bb5 {[%clk 0:03:00]}  Nf6 {[%clk 0:02:54]} 4. Nc3 {[%clk 0:02:59]}  g6 {[%clk 0:02:52]} 5. Bxc6 {[%clk 0:02:58]}  dxc6 {[%clk 0:02:51]} 6. h3 {[%clk 0:02:55]}  c4 {[%clk 0:02:26]} 7. O-O {[%clk 0:02:24]}  Bg7 {[%clk 0:02:15]} 8. a4 {[%clk 0:02:17]}  b6 {[%clk 0:01:56]} 9. Qe2 {[%clk 0:02:01]}  Ba6 {[%clk 0:01:55]} 10. Rd1 {[%clk 0:01:56]}  Qc8 {[%clk 0:01:45]} 11. Qe3 {[%clk 0:01:49]}  O-O {[%clk 0:01:35]} 12. d4 {[%clk 0:01:47]}  cxd3 {[%clk 0:01:34]} 13. cxd3 {[%clk 0:01:47]}  c5 {[%clk 0:01:14]} 14. d4 {[%clk 0:01:46]}  cxd4 {[%clk 0:01:12]} 15. Nxd4 {[%clk 0:01:47]}  Rd8 {[%clk 0:01:03]} 16. Bd2 {[%clk 0:01:40]}  Nxe4 {[%clk 0:00:33]} 17. Qxe4 {[%clk 0:01:39]}  Rxd4 {[%clk 0:00:22]} 18. Qxe7 {[%clk 0:01:36]}  Qd7 {[%clk 0:00:18]} 19. Qe1 {[%clk 0:01:28]}  Re8 {[%clk 0:00:08]} 20. Be3 {[%clk 0:01:28]}  Rxd1 {[%clk 0:00:08]} 21. Rxd1 {[%clk 0:01:29]}  Qc6 {[%clk 0:00:09]} 22. Nd5 {[%clk 0:01:17]}  Bc4 {[%clk 0:00:03]} 23. Nb4 {[%clk 0:01:12]}  Qxa4 {[%clk 0:00:03]} 24. Ra1 {[%clk 0:00:52]}  Qb3 {[%clk 0:00:02]} 25. Rxa7 {[%clk 0:00:52]}  Bxb2 {[%clk 0:00:02]} 26. Nc6 {[%clk 0:00:51]}  Bc3 {[%clk 0:00:02]} 27. Qc1 {[%clk 0:00:52]}  Bb4 {[%clk 0:00:01]} 28. Nxb4 {[%clk 0:00:49]}  Qxb4 {[%clk 0:00:02]} 29. h4 {[%clk 0:00:47]}  Bd5 {[%clk 0:00:02]} 30. f3 {[%clk 0:00:24]}  Qxh4 {[%clk 0:00:02]} 31. Bf2 {[%clk 0:00:18]}  Qf6 {[%clk 0:00:02]} 32. Qc7 {[%clk 0:00:16]}  b5 {[%clk 0:00:01]} 33. Qc5 {[%clk 0:00:13]}  Qe6 {[%clk 0:00:02]} 34. Ra3 {[%clk 0:00:11]}  Bc4 {[%clk 0:00:01]} 35. Re3 {[%clk 0:00:11]}  Qd7 {[%clk 0:00:01]} 36. Ra3 {[%clk 0:00:10]}  Qe7 {[%clk 0:00:01]} 37. Qd4 {[%clk 0:00:07]}  Qxa3 {[%clk 0:00:01]} 38. Qf6 {[%clk 0:00:08]}  Qf8 {[%clk 0:00:01]} 39. Bd4 {[%clk 0:00:07]}  Re1+ {[%clk 0:00:01]} 40. Kf2 {[%clk 0:00:07]}  Qe7 {[%clk 0:00:01]} 41. Qg7# {[%clk 0:00:07]} 1-0


[Site "https://www.chess.com"]

[Event "Titled Tuesday Blitz February 15 Early 2022"]
[White "FGHSMN"]
[Black "Szpar, Milosz"]
[BlackFideId "1184989"]
[WhiteElo "2726"]
[BlackElo "2447"]
[Result "1-0"]
[Round "11"]
[TimeControl "180+1"]
[Date "2022.02.15"]
[WhiteClock "0:00:47"]
[BlackClock "0:00:17"]

1. b3 {[%clk 0:02:58]}  Nf6 {[%clk 0:02:55]} 2. Bb2 {[%clk 0:02:58]}  g6 {[%clk 0:02:56]} 3. Nf3 {[%clk 0:02:57]}  Bg7 {[%clk 0:02:56]} 4. g3 {[%clk 0:02:58]}  O-O {[%clk 0:02:57]} 5. Bg2 {[%clk 0:02:58]}  c5 {[%clk 0:02:57]} 6. c4 {[%clk 0:02:57]}  Nc6 {[%clk 0:02:57]} 7. O-O {[%clk 0:02:56]}  d6 {[%clk 0:02:54]} 8. d4 {[%clk 0:02:54]}  cxd4 {[%clk 0:02:54]} 9. Nxd4 {[%clk 0:02:55]}  Bd7 {[%clk 0:02:54]} 10. Nc3 {[%clk 0:02:54]}  Rc8 {[%clk 0:02:52]} 11. Nc2 {[%clk 0:02:51]}  h5 {[%clk 0:02:47]} 12. Nd5 {[%clk 0:02:42]}  Ne5 {[%clk 0:02:29]} 13. Nxf6+ {[%clk 0:02:38]}  Bxf6 {[%clk 0:02:29]} 14. Bxb7 {[%clk 0:02:30]}  Rb8 {[%clk 0:02:30]} 15. Bg2 {[%clk 0:02:29]}  Nf3+ {[%clk 0:02:29]} 16. Bxf3 {[%clk 0:02:29]}  Bxb2 {[%clk 0:02:30]} 17. Rb1 {[%clk 0:02:29]}  Bg7 {[%clk 0:02:26]} 18. Qd2 {[%clk 0:02:29]}  Bf5 {[%clk 0:02:21]} 19. e4 {[%clk 0:02:25]}  Bd7 {[%clk 0:02:18]} 20. Ne3 {[%clk 0:02:23]}  Bc6 {[%clk 0:02:12]} 21. Nd5 {[%clk 0:02:19]}  e6 {[%clk 0:02:12]} 22. Nb4 {[%clk 0:02:16]}  Qa5 {[%clk 0:02:08]} 23. a3 {[%clk 0:02:16]}  Rfd8 {[%clk 0:02:05]} 24. Rfd1 {[%clk 0:02:11]}  Ba8 {[%clk 0:02:05]} 25. Nc2 {[%clk 0:02:10]}  Qc7 {[%clk 0:01:59]} 26. Qd3 {[%clk 0:02:05]}  h4 {[%clk 0:01:51]} 27. Nd4 {[%clk 0:02:04]}  Qc5 {[%clk 0:01:48]} 28. b4 {[%clk 0:02:02]}  Qg5 {[%clk 0:01:48]} 29. Bg2 {[%clk 0:01:59]}  Rbc8 {[%clk 0:01:45]} 30. Nf3 {[%clk 0:01:57]}  Qg4 {[%clk 0:01:41]} 31. Nxh4 {[%clk 0:01:57]}  Bf6 {[%clk 0:01:33]} 32. h3 {[%clk 0:01:52]}  Qh5 {[%clk 0:01:33]} 33. Nf3 {[%clk 0:01:51]}  Kg7 {[%clk 0:01:32]} 34. Nd4 {[%clk 0:01:49]}  g5 {[%clk 0:01:25]} 35. Nb5 {[%clk 0:01:43]}  Be5 {[%clk 0:01:19]} 36. Nxa7 {[%clk 0:01:41]}  Rc7 {[%clk 0:01:19]} 37. Nb5 {[%clk 0:01:40]}  Rcd7 {[%clk 0:01:19]} 38. Qf3 {[%clk 0:01:39]}  Qg6 {[%clk 0:01:16]} 39. Qe2 {[%clk 0:01:26]}  Bc6 {[%clk 0:01:13]} 40. Nd4 {[%clk 0:01:25]}  Ba4 {[%clk 0:01:14]} 41. Rd2 {[%clk 0:01:24]}  Kg8 {[%clk 0:01:07]} 42. b5 {[%clk 0:01:19]}  Rc8 {[%clk 0:00:56]} 43. Nc6 {[%clk 0:01:17]}  Rxc6 {[%clk 0:00:56]} 44. bxc6 {[%clk 0:01:17]}  Bxc6 {[%clk 0:00:57]} 45. Rbd1 {[%clk 0:01:01]}  Ra7 {[%clk 0:00:47]} 46. Rxd6 {[%clk 0:01:01]}  Bxd6 {[%clk 0:00:47]} 47. Rxd6 {[%clk 0:01:01]}  Ba4 {[%clk 0:00:39]} 48. Rd8+ {[%clk 0:01:01]}  Kh7 {[%clk 0:00:35]} 49. Qb2 {[%clk 0:01:01]}  Qg7 {[%clk 0:00:33]} 50. Qxg7+ {[%clk 0:01:00]}  Kxg7 {[%clk 0:00:34]} 51. Rd3 {[%clk 0:00:59]}  Rc7 {[%clk 0:00:32]} 52. Rc3 {[%clk 0:00:59]}  Rc5 {[%clk 0:00:32]} 53. f4 {[%clk 0:00:56]}  gxf4 {[%clk 0:00:27]} 54. gxf4 {[%clk 0:00:57]}  e5 {[%clk 0:00:28]} 55. fxe5 {[%clk 0:00:55]}  Kg6 {[%clk 0:00:28]} 56. Kf2 {[%clk 0:00:55]}  Bc6 {[%clk 0:00:21]} 57. Ke3 {[%clk 0:00:54]}  Rxe5 {[%clk 0:00:22]} 58. Kd4 {[%clk 0:00:48]}  Rg5 {[%clk 0:00:20]} 59. Bf3 {[%clk 0:00:48]}  Kf6 {[%clk 0:00:17]} 60. e5+ {[%clk 0:00:47]} 1-0


[Site "https://www.chess.com"]

[Event "Titled Tuesday Blitz February 15 Early 2022"]
[White "Fajdetic, Hrvoje"]
[Black "Omariev, Maksim"]
[WhiteFideId "14501945"]
[BlackFideId "4193423"]
[WhiteElo "2140"]
[BlackElo "2514"]
[Result "1-0"]
[Round "11"]
[TimeControl "180+1"]
[Date "2022.02.15"]
[WhiteClock "0:00:14"]
[BlackClock "0:00:01"]

1. d4 {[%clk 0:02:56]}  h5 {[%clk 0:02:59]} 2. Nc3 {[%clk 0:02:51]}  h4 {[%clk 0:03:00]} 3. h3 {[%clk 0:02:50]}  d5 {[%clk 0:03:00]} 4. Bf4 {[%clk 0:02:49]}  Bf5 {[%clk 0:03:00]} 5. Qd2 {[%clk 0:02:45]}  e6 {[%clk 0:02:59]} 6. f3 {[%clk 0:02:45]}  Bb4 {[%clk 0:02:52]} 7. a3 {[%clk 0:02:44]}  Ba5 {[%clk 0:02:50]} 8. b4 {[%clk 0:02:43]}  Bb6 {[%clk 0:02:50]} 9. e4 {[%clk 0:02:37]}  dxe4 {[%clk 0:02:49]} 10. fxe4 {[%clk 0:02:38]}  Bg6 {[%clk 0:02:50]} 11. Nf3 {[%clk 0:02:38]}  Nf6 {[%clk 0:02:49]} 12. Bg5 {[%clk 0:02:31]}  Qd7 {[%clk 0:02:36]} 13. O-O-O {[%clk 0:02:25]}  Nxe4 {[%clk 0:02:34]} 14. Nxe4 {[%clk 0:02:23]}  Bxe4 {[%clk 0:02:34]} 15. Ne5 {[%clk 0:02:21]}  Qa4 {[%clk 0:02:35]} 16. Kb2 {[%clk 0:02:06]}  f6 {[%clk 0:02:14]} 17. Bc4 {[%clk 0:01:46]}  Nd7 {[%clk 0:00:26]} 18. Bb3 {[%clk 0:01:29]}  Qa6 {[%clk 0:00:20]} 19. Bc4 {[%clk 0:01:17]}  Qa4 {[%clk 0:00:18]} 20. Bxe6 {[%clk 0:00:44]}  Nf8 {[%clk 0:00:12]} 21. Bb3 {[%clk 0:00:31]}  Qb5 {[%clk 0:00:12]} 22. a4 {[%clk 0:00:21]}  Qa6 {[%clk 0:00:05]} 23. b5 {[%clk 0:00:20]}  Qa5 {[%clk 0:00:05]} 24. Qe2 {[%clk 0:00:15]}  f5 {[%clk 0:00:01]} 25. Bd2 {[%clk 0:00:14]} 1-0


[Site "https://www.chess.com"]